[Event "Live Chess"]
[Site "Chess.com"]
[Date "2024.06.02"]
[Round "-"]
[White "yarek"]
[Black "Crowded_House"]
[Result "1-0"]
[WhiteElo "1738"]
[BlackElo "1675"]
[TimeControl "300"]
[EndTime "2:05:54 PDT"]
[Termination "yarek won by checkmate"]

1. e4 {[%clk 0:04:56.7]} 1... e6 {[%clk 0:04:58.8]} 2. d4 {[%clk 0:04:55.8]}
2... d5 {[%clk 0:04:58.3]} 3. exd5 {[%clk 0:04:54.6]} 3... exd5 {[%clk
0:04:56.6]} 4. Bd3 {[%clk 0:04:54.2]} 4... Bd6 {[%clk 0:04:55.1]} 5. c3 {[%clk
0:04:52.2]} 5... Ne7 {[%clk 0:04:53.4]} 6. h3 {[%clk 0:04:49]} 6... h6 {[%clk
0:04:52.6]} 7. Nf3 {[%clk 0:04:46.5]} 7... O-O {[%clk 0:04:51.4]} 8. O-O {[%clk
0:04:45.4]} 8... Bf5 {[%clk 0:04:49.6]} 9. Be3 {[%clk 0:04:43.2]} 9... Re8
{[%clk 0:04:46.8]} 10. c4 {[%clk 0:04:28.3]} 10... c6 {[%clk 0:04:42.7]} 11. c5
{[%clk 0:04:15.4]} 11... Bc7 {[%clk 0:04:41.3]} 12. b4 {[%clk 0:04:13.6]} 12...
a6 {[%clk 0:04:39.4]} 13. a4 {[%clk 0:04:11.9]} 13... Nd7 {[%clk 0:04:36.8]} 14.
Nc3 {[%clk 0:04:08.2]} 14... Nf6 {[%clk 0:04:33.7]} 15. Qc2 {[%clk 0:03:52.5]}
15... Bxd3 {[%clk 0:04:31.2]} 16. Qxd3 {[%clk 0:03:50.2]} 16... Ng6 {[%clk
0:04:30.8]} 17. b5 {[%clk 0:03:40.8]} 17... axb5 {[%clk 0:04:28.1]} 18. axb5
{[%clk 0:03:39.5]} 18... Qd7 {[%clk 0:04:15.3]} 19. b6 {[%clk 0:03:33.3]} 19...
Bf4 {[%clk 0:04:08.6]} 20. Bxf4 {[%clk 0:03:04.3]} 20... Nxf4 {[%clk 0:04:06.6]}
21. Qd2 {[%clk 0:03:01.6]} 21... Qe7 {[%clk 0:03:48.2]} 22. Ne5 {[%clk
0:02:56.3]} 22... Ne6 {[%clk 0:03:40.9]} 23. f4 {[%clk 0:02:49]} 23... Nd7
{[%clk 0:03:10.7]} 24. f5 {[%clk 0:02:39.8]} 24... Nxe5 {[%clk 0:03:02.4]} 25.
fxe6 {[%clk 0:02:33]} 25... Qxe6 {[%clk 0:02:59.3]} 26. dxe5 {[%clk 0:02:30.5]}
26... Qxe5 {[%clk 0:02:58.6]} 27. Rxa8 {[%clk 0:02:22.1]} 27... Rxa8 {[%clk
0:02:56.6]} 28. Ne2 {[%clk 0:02:10.4]} 28... Qe4 {[%clk 0:02:41.3]} 29. Ng3
{[%clk 0:01:57]} 29... Qc4 {[%clk 0:02:40]} 30. Qf2 {[%clk 0:01:47.5]} 30... Rf8
{[%clk 0:02:33.5]} 31. Nf5 {[%clk 0:01:42.6]} 31... Qe4 {[%clk 0:01:59.9]} 32.
Nd6 {[%clk 0:01:36.2]} 32... Qe7 {[%clk 0:01:57.9]} 33. Re1 {[%clk 0:01:30.6]}
33... Qd7 {[%clk 0:01:55.6]} 34. Ra1 {[%clk 0:01:18.3]} 34... Rb8 {[%clk
0:01:50.4]} 35. Ra7 {[%clk 0:01:11.4]} 35... Kf8 {[%clk 0:01:47.7]} 36. Qf5
{[%clk 0:01:02.9]} 36... Qxf5 {[%clk 0:01:38.7]} 37. Nxf5 {[%clk 0:01:02.8]}
37... g6 {[%clk 0:01:31.7]} 38. Nd6 {[%clk 0:01:02]} 38... d4 {[%clk 0:01:30.7]}
39. Kf2 {[%clk 0:00:59]} 39... Ke7 {[%clk 0:01:24.1]} 40. Rxb7+ {[%clk
0:00:54.1]} 40... Rxb7 {[%clk 0:01:23.5]} 41. Nxb7 {[%clk 0:00:53.2]} 41... Kd7
{[%clk 0:01:21.1]} 42. Nd6 {[%clk 0:00:52.6]} 42... f5 {[%clk 0:01:17.4]} 43. b7
{[%clk 0:00:51.9]} 43... Kc7 {[%clk 0:01:15.3]} 44. Ke2 {[%clk 0:00:51.3]} 44...
g5 {[%clk 0:01:09.7]} 45. Kd3 {[%clk 0:00:50.8]} 45... f4 {[%clk 0:01:09]} 46.
Kxd4 {[%clk 0:00:50.1]} 46... h5 {[%clk 0:01:06.7]} 47. Ke4 {[%clk 0:00:49.6]}
47... g4 {[%clk 0:01:04.8]} 48. hxg4 {[%clk 0:00:48]} 48... hxg4 {[%clk
0:01:04.5]} 49. Kxf4 {[%clk 0:00:47]} 49... g3 {[%clk 0:01:04.2]} 50. Kxg3
{[%clk 0:00:46.2]} 50... Kd7 {[%clk 0:01:03.6]} 51. Kf4 {[%clk 0:00:45.7]} 51...
Kc7 {[%clk 0:01:02]} 52. Ke5 {[%clk 0:00:43.9]} 52... Kb8 {[%clk 0:01:00.5]} 53.
g4 {[%clk 0:00:36.1]} 53... Kc7 {[%clk 0:00:59.7]} 54. g5 {[%clk 0:00:35.6]}
54... Kb8 {[%clk 0:00:58.5]} 55. g6 {[%clk 0:00:35.1]} 55... Ka7 {[%clk
0:00:55.2]} 56. g7 {[%clk 0:00:34.3]} 56... Ka6 {[%clk 0:00:54.8]} 57. g8=Q
{[%clk 0:00:32.4]} 57... Ka5 {[%clk 0:00:52.3]} 58. b8=Q {[%clk 0:00:30.1]}
58... Ka4 {[%clk 0:00:51.1]} 59. Qg4+ {[%clk 0:00:29]} 59... Ka3 {[%clk
0:00:49.9]} 60. Qgb4+ {[%clk 0:00:28.1]} 60... Ka2 {[%clk 0:00:48.9]} 61. Qa7#
{[%clk 0:00:27.4]} 1-0

[Event "Live Chess"]
[Site "Chess.com"]
[Date "2024.06.02"]
[Round "-"]
[White "juniortay"]
[Black "willc-h99"]
[Result "0-1"]
[WhiteElo "2387"]
[BlackElo "2622"]
[TimeControl "300"]
[EndTime "2:05:55 PDT"]
[Termination "willc-h99 won by checkmate"]

1. e4 {[%clk 0:04:57.1]} 1... c6 {[%clk 0:04:58.8]} 2. Nf3 {[%clk 0:04:56.2]}
2... d5 {[%clk 0:04:57.5]} 3. exd5 {[%clk 0:04:56.1]} 3... cxd5 {[%clk
0:04:56.3]} 4. Ne5 {[%clk 0:04:55.8]} 4... Nc6 {[%clk 0:04:52.6]} 5. d4 {[%clk
0:04:55.1]} 5... e6 {[%clk 0:04:45.5]} 6. c3 {[%clk 0:04:49.3]} 6... Bd6 {[%clk
0:04:43.1]} 7. f4 {[%clk 0:04:48.2]} 7... Nge7 {[%clk 0:04:36.4]} 8. Bd3 {[%clk
0:04:46.7]} 8... O-O {[%clk 0:04:07.5]} 9. O-O {[%clk 0:04:44.6]} 9... Qe8
{[%clk 0:03:17]} 10. Rf3 {[%clk 0:04:39.6]} 10... f6 {[%clk 0:03:09.3]} 11. Rh3
{[%clk 0:04:36.2]} 11... g6 {[%clk 0:02:52.6]} 12. Nxc6 {[%clk 0:03:46.5]} 12...
bxc6 {[%clk 0:02:49.9]} 13. Re3 {[%clk 0:03:38.5]} 13... Bxf4 {[%clk 0:02:40.7]}
14. Re1 {[%clk 0:03:35.4]} 14... Bxc1 {[%clk 0:02:38.7]} 15. Qxc1 {[%clk
0:03:35.3]} 15... Qf7 {[%clk 0:02:37.1]} 16. Nd2 {[%clk 0:03:33.1]} 16... Nf5
{[%clk 0:02:22.1]} 17. Nf3 {[%clk 0:03:27.4]} 17... Nd6 {[%clk 0:02:19.3]} 18.
Qd2 {[%clk 0:03:21.9]} 18... a5 {[%clk 0:02:16.2]} 19. Re2 {[%clk 0:03:20.6]}
19... Ba6 {[%clk 0:02:13.4]} 20. Rae1 {[%clk 0:03:19.5]} 20... Bxd3 {[%clk
0:02:11.2]} 21. Qxd3 {[%clk 0:03:18.9]} 21... Ne4 {[%clk 0:02:10.5]} 22. Nd2
{[%clk 0:03:15]} 22... Nxd2 {[%clk 0:02:06]} 23. Qxd2 {[%clk 0:03:13.1]} 23...
Rfe8 {[%clk 0:02:00.1]} 24. Re3 {[%clk 0:03:01]} 24... e5 {[%clk 0:01:53]} 25.
dxe5 {[%clk 0:02:56.9]} 25... fxe5 {[%clk 0:01:52]} 26. c4 {[%clk 0:02:55.3]}
26... e4 {[%clk 0:01:44.3]} 27. cxd5 {[%clk 0:02:51.2]} 27... cxd5 {[%clk
0:01:43.5]} 28. Qd4 {[%clk 0:02:46.6]} 28... Rf8 {[%clk 0:01:41.1]} 29. h3
{[%clk 0:02:45.8]} 29... Rac8 {[%clk 0:01:36.2]} 30. R3e2 {[%clk 0:02:42.6]}
30... Rc4 {[%clk 0:01:28.2]} 31. Qb6 {[%clk 0:02:41.7]} 31... a4 {[%clk
0:01:18.2]} 32. Qd6 {[%clk 0:02:40.1]} 32... Rd4 {[%clk 0:01:06.3]} 33. Qe5
{[%clk 0:02:36.8]} 33... Rd3 {[%clk 0:01:05.4]} 34. Rc1 {[%clk 0:02:27.3]} 34...
Re8 {[%clk 0:01:00.6]} 35. Qd6 {[%clk 0:02:21.3]} 35... Qa7+ {[%clk 0:00:56.2]}
36. Kh2 {[%clk 0:02:19.6]} 36... Qe7 {[%clk 0:00:53.1]} 37. Qc6 {[%clk
0:02:09.3]} 37... Qe5+ {[%clk 0:00:51.3]} 38. Kg1 {[%clk 0:02:07.7]} 38... Rf8
{[%clk 0:00:49.9]} 39. Qxa4 {[%clk 0:01:56.5]} 39... Rxh3 {[%clk 0:00:49.5]} 40.
Qd7 {[%clk 0:01:48.9]} 40... Qh2# {[%clk 0:00:47.9]} 0-1

[Event "Live Chess"]
[Site "Chess.com"]
[Date "2024.06.02"]
[Round "-"]
[White "grillage"]
[Black "JohanKjeldahl"]
[Result "1/2-1/2"]
[WhiteElo "1866"]
[BlackElo "1817"]
[TimeControl "300"]
[EndTime "2:06:11 PDT"]
[Termination "Game drawn by stalemate"]

1. d4 {[%clk 0:04:57.2]} 1... Nf6 {[%clk 0:04:57.7]} 2. Nf3 {[%clk 0:04:54.3]}
2... c5 {[%clk 0:04:53.2]} 3. g3 {[%clk 0:04:40.5]} 3... e6 {[%clk 0:04:50.9]}
4. Bg2 {[%clk 0:04:37.9]} 4... d5 {[%clk 0:04:49.6]} 5. O-O {[%clk 0:04:30.2]}
5... Nc6 {[%clk 0:04:47.7]} 6. c4 {[%clk 0:04:22.7]} 6... dxc4 {[%clk
0:04:45.3]} 7. Na3 {[%clk 0:04:16.7]} 7... cxd4 {[%clk 0:04:43.1]} 8. Nxc4
{[%clk 0:04:12.3]} 8... Bc5 {[%clk 0:04:41.7]} 9. a3 {[%clk 0:04:04.4]} 9... a5
{[%clk 0:04:38.1]} 10. Qa4 {[%clk 0:04:00.4]} 10... O-O {[%clk 0:04:35.7]} 11.
Bg5 {[%clk 0:03:56.8]} 11... h6 {[%clk 0:04:30.5]} 12. Bf4 {[%clk 0:03:50]}
12... Bd7 {[%clk 0:04:26.2]} 13. Qc2 {[%clk 0:03:39.9]} 13... b5 {[%clk
0:04:17.2]} 14. Nce5 {[%clk 0:03:37.7]} 14... Nxe5 {[%clk 0:04:14.6]} 15. Nxe5
{[%clk 0:03:35.5]} 15... Bb6 {[%clk 0:04:08.5]} 16. Bxa8 {[%clk 0:03:26]} 16...
Qxa8 {[%clk 0:04:07.1]} 17. Nxd7 {[%clk 0:03:23.8]} 17... Nxd7 {[%clk
0:04:05.4]} 18. Rac1 {[%clk 0:03:22.1]} 18... e5 {[%clk 0:04:03.7]} 19. Bd2
{[%clk 0:03:19.7]} 19... f5 {[%clk 0:03:52.5]} 20. Qc6 {[%clk 0:03:17.9]} 20...
Qxc6 {[%clk 0:03:39.4]} 21. Rxc6 {[%clk 0:03:16.7]} 21... Kf7 {[%clk 0:03:34.9]}
22. Rfc1 {[%clk 0:03:14.6]} 22... Ke7 {[%clk 0:03:33.4]} 23. e3 {[%clk
0:02:58.2]} 23... dxe3 {[%clk 0:03:29.8]} 24. Bxe3 {[%clk 0:02:56.3]} 24... Bxe3
{[%clk 0:03:27.8]} 25. fxe3 {[%clk 0:02:55.3]} 25... e4 {[%clk 0:03:26.1]} 26.
Rc7 {[%clk 0:02:49.1]} 26... Rd8 {[%clk 0:03:21.8]} 27. Rb7 {[%clk 0:02:45.1]}
27... Ke6 {[%clk 0:03:14.4]} 28. Rxb5 {[%clk 0:02:41.9]} 28... Ne5 {[%clk
0:03:13.1]} 29. Rxa5 {[%clk 0:02:36.2]} 29... Rd2 {[%clk 0:03:10.4]} 30. Rxe5+
{[%clk 0:02:29.8]} 30... Kxe5 {[%clk 0:03:08.5]} 31. Rb1 {[%clk 0:02:28.1]}
31... Re2 {[%clk 0:03:06.2]} 32. b4 {[%clk 0:02:24.7]} 32... Rxe3 {[%clk
0:03:05.3]} 33. b5 {[%clk 0:02:24.1]} 33... Rxa3 {[%clk 0:03:03.9]} 34. b6
{[%clk 0:02:23.6]} 34... Ra8 {[%clk 0:03:02.9]} 35. b7 {[%clk 0:02:23]} 35...
Rb8 {[%clk 0:03:02.1]} 36. Kf2 {[%clk 0:02:21.8]} 36... Kd4 {[%clk 0:02:59.8]}
37. Ke2 {[%clk 0:02:15.9]} 37... g5 {[%clk 0:02:56.8]} 38. Rb4+ {[%clk
0:02:12.1]} 38... Kc5 {[%clk 0:02:53.2]} 39. Rb1 {[%clk 0:02:09.6]} 39... Kd4
{[%clk 0:02:51.8]} 40. Rb6 {[%clk 0:02:06]} 40... f4 {[%clk 0:02:49.2]} 41. gxf4
{[%clk 0:02:04.1]} 41... gxf4 {[%clk 0:02:47.6]} 42. Rb4+ {[%clk 0:02:03.2]}
42... Kd5 {[%clk 0:02:44.8]} 43. h4 {[%clk 0:01:58.7]} 43... Ke5 {[%clk
0:02:37.3]} 44. Rb5+ {[%clk 0:01:53.7]} 44... Kd4 {[%clk 0:02:35.8]} 45. h5
{[%clk 0:01:50.9]} 45... f3+ {[%clk 0:02:33.5]} 46. Kd2 {[%clk 0:01:48]} 46...
e3+ {[%clk 0:02:31.9]} 47. Ke1 {[%clk 0:01:46.5]} 47... Kd3 {[%clk 0:02:30.2]}
48. Rb3+ {[%clk 0:01:41.8]} 48... Kd4 {[%clk 0:02:27.3]} 49. Rb4+ {[%clk
0:01:40.1]} 49... Kd3 {[%clk 0:02:22.6]} 50. Rb3+ {[%clk 0:01:34.6]} 50... Ke4
{[%clk 0:02:16.9]} 51. Rb4+ {[%clk 0:01:33.2]} 51... Kf5 {[%clk 0:02:12.8]} 52.
Rb5+ {[%clk 0:01:30.2]} 52... Kg4 {[%clk 0:02:08.9]} 53. Rb3 {[%clk 0:01:25.6]}
53... Kf4 {[%clk 0:02:03.1]} 54. Rb4+ {[%clk 0:01:23.5]} 54... Kg3 {[%clk
0:02:01.5]} 55. Rb3 {[%clk 0:01:22.3]} 55... e2 {[%clk 0:01:54.7]} 56. Rb6
{[%clk 0:01:17]} 56... Kg2 {[%clk 0:01:50.4]} 57. Rg6+ {[%clk 0:01:14.5]} 57...
Kh2 {[%clk 0:01:47.9]} 58. Rg7 {[%clk 0:01:10.2]} 58... Kh3 {[%clk 0:01:43.4]}
59. Kf2 {[%clk 0:01:08.9]} 59... Kh4 {[%clk 0:01:41.5]} 60. Re7 {[%clk
0:01:03.9]} 60... Kg4 {[%clk 0:01:33.5]} 61. Re4+ {[%clk 0:00:53.3]} 61... Kf5
{[%clk 0:01:28.9]} 62. Re7 {[%clk 0:00:46.2]} 62... Kf6 {[%clk 0:01:23.2]} 63.
Re3 {[%clk 0:00:40.1]} 63... Kg5 {[%clk 0:01:21.3]} 64. Re7 {[%clk 0:00:36.7]}
64... Kf6 {[%clk 0:01:19.4]} 65. Re3 {[%clk 0:00:35.5]} 65... Rxb7 {[%clk
0:01:18.3]} 66. Rxf3+ {[%clk 0:00:34.4]} 66... Kg5 {[%clk 0:01:17.5]} 67. Kxe2
{[%clk 0:00:33.5]} 67... Kxh5 {[%clk 0:01:15.5]} 68. Rg3 {[%clk 0:00:32.5]}
68... Rb4 {[%clk 0:01:11.5]} 69. Kf2 {[%clk 0:00:31.5]} 69... Kh4 {[%clk
0:01:09.6]} 70. Rg6 {[%clk 0:00:29.2]} 70... h5 {[%clk 0:01:07]} 71. Kg2 {[%clk
0:00:27.5]} 71... Rg4+ {[%clk 0:01:04.4]} 72. Rxg4+ {[%clk 0:00:26.5]} 72...
hxg4 {[%clk 0:01:03.6]} 73. Kh2 {[%clk 0:00:24.2]} 73... g3+ {[%clk 0:01:02.1]}
74. Kg2 {[%clk 0:00:22.7]} 74... Kg4 {[%clk 0:01:01.4]} 75. Kg1 {[%clk 0:00:22]}
75... Kf3 {[%clk 0:01:00.2]} 76. Kf1 {[%clk 0:00:21.2]} 76... g2+ {[%clk
0:00:59.1]} 77. Kg1 {[%clk 0:00:20.5]} 77... Kg3 {[%clk 0:00:58.3]} 1/2-1/2

[Event "Live Chess"]
[Site "Chess.com"]
[Date "2024.06.02"]
[Round "-"]
[White "Bradfield133"]
[Black "AlanBstard10"]
[Result "1/2-1/2"]
[WhiteElo "1871"]
[BlackElo "1229"]
[TimeControl "300"]
[EndTime "2:06:21 PDT"]
[Termination "Game drawn - timeout vs insufficient material"]

1. c4 {[%clk 0:04:58]} 1... e5 {[%clk 0:04:56.1]} 2. g3 {[%clk 0:04:56.6]} 2...
d6 {[%clk 0:04:52.2]} 3. Bg2 {[%clk 0:04:55.6]} 3... Nc6 {[%clk 0:04:50.1]} 4.
Nc3 {[%clk 0:04:54.4]} 4... Bd7 {[%clk 0:04:49.2]} 5. e3 {[%clk 0:04:53.1]} 5...
Be7 {[%clk 0:04:47.8]} 6. Nge2 {[%clk 0:04:52]} 6... Nf6 {[%clk 0:04:47.1]} 7.
O-O {[%clk 0:04:50.9]} 7... O-O {[%clk 0:04:43.5]} 8. h3 {[%clk 0:04:38.9]} 8...
Qe8 {[%clk 0:04:40.5]} 9. b3 {[%clk 0:04:34.4]} 9... Qc8 {[%clk 0:04:38.9]} 10.
Kh2 {[%clk 0:04:32.2]} 10... Bd8 {[%clk 0:04:32.5]} 11. f4 {[%clk 0:04:28]}
11... exf4 {[%clk 0:04:30.5]} 12. Nxf4 {[%clk 0:04:26.3]} 12... Nb4 {[%clk
0:04:26.9]} 13. a3 {[%clk 0:04:18.1]} 13... Nc6 {[%clk 0:04:22.2]} 14. d4 {[%clk
0:04:05.5]} 14... Ne7 {[%clk 0:04:20.2]} 15. e4 {[%clk 0:03:45.6]} 15... Bc6
{[%clk 0:04:17]} 16. Nfd5 {[%clk 0:03:31.3]} 16... Nexd5 {[%clk 0:04:15.3]} 17.
exd5 {[%clk 0:03:29.7]} 17... Bd7 {[%clk 0:04:13.2]} 18. Bg5 {[%clk 0:03:25]}
18... h6 {[%clk 0:04:10.6]} 19. Bxf6 {[%clk 0:03:19.7]} 19... Bxf6 {[%clk
0:04:09.2]} 20. Rxf6 {[%clk 0:03:17.4]} 20... gxf6 {[%clk 0:04:07.6]} 21. Ne4
{[%clk 0:03:13.7]} 21... f5 {[%clk 0:03:50.1]} 22. Nf6+ {[%clk 0:03:05.7]} 22...
Kg7 {[%clk 0:03:47.3]} 23. Nh5+ {[%clk 0:03:02.2]} 23... Kg8 {[%clk 0:03:43.6]}
24. Qd2 {[%clk 0:02:56.2]} 24... Kh7 {[%clk 0:03:35.9]} 25. Rf1 {[%clk
0:02:19.5]} 25... Rg8 {[%clk 0:03:32.7]} 26. Nf6+ {[%clk 0:02:16.4]} 26... Kg7
{[%clk 0:03:28.3]} 27. Nxg8 {[%clk 0:02:15]} 27... Qxg8 {[%clk 0:03:27.5]} 28.
Re1 {[%clk 0:01:59.7]} 28... Re8 {[%clk 0:03:19.9]} 29. c5 {[%clk 0:01:49]}
29... Rxe1 {[%clk 0:03:17.8]} 30. Qxe1 {[%clk 0:01:47.2]} 30... Qe8 {[%clk
0:03:16.1]} 31. Qf2 {[%clk 0:01:38.6]} 31... dxc5 {[%clk 0:03:11]} 32. dxc5
{[%clk 0:01:36.8]} 32... b6 {[%clk 0:02:41.2]} 33. b4 {[%clk 0:01:28.3]} 33...
bxc5 {[%clk 0:02:39.3]} 34. bxc5 {[%clk 0:01:26.7]} 34... Bc8 {[%clk 0:02:31.7]}
35. c6 {[%clk 0:01:16.3]} 35... Qe5 {[%clk 0:02:26.4]} 36. Qxa7 {[%clk
0:01:11.9]} 36... Kf6 {[%clk 0:02:20.5]} 37. Qf2 {[%clk 0:01:06.6]} 37... Qc3
{[%clk 0:02:13.4]} 38. Qf4 {[%clk 0:01:01]} 38... Qe5 {[%clk 0:02:11.4]} 39.
Qxh6+ {[%clk 0:00:59.4]} 39... Ke7 {[%clk 0:02:09.5]} 40. Qf4 {[%clk 0:00:57.6]}
40... Kd6 {[%clk 0:02:01.1]} 41. h4 {[%clk 0:00:48.5]} 41... f6 {[%clk
0:01:50.6]} 42. h5 {[%clk 0:00:46.9]} 42... Qxf4 {[%clk 0:01:43.8]} 43. gxf4
{[%clk 0:00:45.3]} 43... Ke7 {[%clk 0:01:43.2]} 44. Kg3 {[%clk 0:00:41]} 44...
Kf7 {[%clk 0:01:42.4]} 45. a4 {[%clk 0:00:36.3]} 45... Kg7 {[%clk 0:01:41.5]}
46. a5 {[%clk 0:00:34.4]} 46... Kh6 {[%clk 0:01:40.7]} 47. Kh4 {[%clk
0:00:33.4]} 47... Ba6 {[%clk 0:01:37.6]} 48. Bf3 {[%clk 0:00:29.1]} 48... Bc4
{[%clk 0:01:34.9]} 49. Kg3 {[%clk 0:00:21.1]} 49... Ba6 {[%clk 0:01:31.2]} 50.
Kf2 {[%clk 0:00:20]} 50... Bb5 {[%clk 0:01:27.5]} 51. Ke3 {[%clk 0:00:19.4]}
51... Bc4 {[%clk 0:01:25.5]} 52. Kd4 {[%clk 0:00:19.1]} 52... Bf1 {[%clk
0:01:23.5]} 53. Kc5 {[%clk 0:00:18]} 53... Bd3 {[%clk 0:01:21.3]} 54. d6 {[%clk
0:00:17.3]} 54... cxd6+ {[%clk 0:01:20]} 55. Kxd6 {[%clk 0:00:16.6]} 55... Bb5
{[%clk 0:01:18.3]} 56. c7 {[%clk 0:00:15]} 56... Ba6 {[%clk 0:01:17.5]} 57. Kd7
{[%clk 0:00:14.5]} 57... Kg7 {[%clk 0:01:15.2]} 58. c8=Q {[%clk 0:00:13.5]}
58... Bxc8+ {[%clk 0:01:14.5]} 59. Kxc8 {[%clk 0:00:12.8]} 59... Kf7 {[%clk
0:01:12.6]} 60. a6 {[%clk 0:00:12.5]} 60... Ke7 {[%clk 0:01:11.9]} 61. a7 {[%clk
0:00:12.4]} 61... Kd6 {[%clk 0:01:11.4]} 62. a8=Q {[%clk 0:00:11.1]} 62... Kc5
{[%clk 0:01:11]} 63. Qd5+ {[%clk 0:00:10.1]} 63... Kb4 {[%clk 0:01:09.3]} 64.
Kb7 {[%clk 0:00:09.2]} 64... Kc3 {[%clk 0:01:08]} 65. Qc5+ {[%clk 0:00:07.5]}
65... Kd3 {[%clk 0:01:06.9]} 66. Qd6+ {[%clk 0:00:05.9]} 66... Ke3 {[%clk
0:01:06.1]} 67. Qxf6 {[%clk 0:00:05.8]} 67... Kxf3 {[%clk 0:01:04.5]} 68. Qxf5
{[%clk 0:00:05]} 68... Kg3 {[%clk 0:01:03.6]} 69. h6 {[%clk 0:00:04.9]} 69...
Kf3 {[%clk 0:01:02.9]} 70. h7 {[%clk 0:00:04.4]} 70... Ke3 {[%clk 0:01:02.6]}
71. h8=Q {[%clk 0:00:03.1]} 71... Kf3 {[%clk 0:01:02.2]} 72. Qe8 {[%clk
0:00:02.3]} 72... Kf2 {[%clk 0:01:01]} 73. Qg5 {[%clk 0:00:01.7]} 73... Kf3
{[%clk 0:01:00.1]} 1/2-1/2

[Event "Live Chess"]
[Site "Chess.com"]
[Date "2024.06.02"]
[Round "-"]
[White "A3ndrey9"]
[Black "TJ-W"]
[Result "0-1"]
[WhiteElo "1274"]
[BlackElo "1574"]
[TimeControl "300"]
[EndTime "2:06:24 PDT"]
[Termination "TJ-W won on time"]

1. Nf3 {[%clk 0:04:59]} 1... Nf6 {[%clk 0:04:51.1]} 2. d4 {[%clk 0:04:54.3]}
2... b6 {[%clk 0:04:50]} 3. c4 {[%clk 0:04:53.6]} 3... Bb7 {[%clk 0:04:49.1]} 4.
g3 {[%clk 0:04:52.7]} 4... d5 {[%clk 0:04:38.6]} 5. cxd5 {[%clk 0:04:46.9]} 5...
Bxd5 {[%clk 0:04:33]} 6. Nc3 {[%clk 0:04:46.8]} 6... e6 {[%clk 0:04:29.2]} 7.
Nxd5 {[%clk 0:04:44.4]} 7... Qxd5 {[%clk 0:04:26.7]} 8. Bg2 {[%clk 0:04:43.4]}
8... Qa5+ {[%clk 0:04:19.1]} 9. Bd2 {[%clk 0:04:33.7]} 9... Bb4 {[%clk
0:04:18.4]} 10. Bxb4 {[%clk 0:04:25.9]} 10... Qxb4+ {[%clk 0:04:17.5]} 11. Qd2
{[%clk 0:04:25.3]} 11... Qxd2+ {[%clk 0:04:16.7]} 12. Nxd2 {[%clk 0:04:23]}
12... c6 {[%clk 0:04:06.1]} 13. b4 {[%clk 0:04:21.4]} 13... O-O {[%clk
0:04:02.5]} 14. b5 {[%clk 0:04:18.1]} 14... Nd5 {[%clk 0:03:52.9]} 15. bxc6
{[%clk 0:04:11.3]} 15... Nxc6 {[%clk 0:03:49.2]} 16. O-O {[%clk 0:04:05.4]}
16... Nxd4 {[%clk 0:03:44.8]} 17. e4 {[%clk 0:03:56.4]} 17... Nc3 {[%clk
0:03:36.6]} 18. Nf3 {[%clk 0:03:40.4]} 18... Nde2+ {[%clk 0:03:28.1]} 19. Kh1
{[%clk 0:03:38.4]} 19... Nxe4 {[%clk 0:03:17.9]} 20. Ng1 {[%clk 0:03:03.9]}
20... N2c3 {[%clk 0:03:09.1]} 21. Rac1 {[%clk 0:02:45.2]} 21... Rac8 {[%clk
0:02:59.7]} 22. Bxe4 {[%clk 0:02:39.6]} 22... Nxe4 {[%clk 0:02:53.1]} 23. Kg2
{[%clk 0:02:29.6]} 23... f5 {[%clk 0:02:46.4]} 24. Nf3 {[%clk 0:02:25.3]} 24...
h6 {[%clk 0:02:37.1]} 25. Ne5 {[%clk 0:02:18.1]} 25... g5 {[%clk 0:02:27.9]} 26.
Ng6 {[%clk 0:02:08.6]} 26... Rxc1 {[%clk 0:02:20.7]} 27. Rxc1 {[%clk 0:01:51.4]}
27... Rf7 {[%clk 0:02:14.2]} 28. Rc8+ {[%clk 0:01:38.5]} 28... Kg7 {[%clk
0:02:09.5]} 29. Ne5 {[%clk 0:01:31.7]} 29... Re7 {[%clk 0:02:06.6]} 30. Nc6
{[%clk 0:01:18.3]} 30... Rd7 {[%clk 0:02:03.6]} 31. Ra8 {[%clk 0:00:47.3]} 31...
a5 {[%clk 0:01:55.1]} 32. Ra7 {[%clk 0:00:21.4]} 32... Rxa7 {[%clk 0:01:51.1]}
33. Nxa7 {[%clk 0:00:21.3]} 33... Nc3 {[%clk 0:01:49.8]} 34. Nc8 {[%clk
0:00:17.4]} 34... b5 {[%clk 0:01:42.4]} 35. Nd6 {[%clk 0:00:14.3]} 35... b4
{[%clk 0:01:38.9]} 36. Nb7 {[%clk 0:00:10.7]} 36... a4 {[%clk 0:01:33.1]} 37.
Nc5 {[%clk 0:00:09]} 37... Nxa2 {[%clk 0:01:26.8]} 38. Nxa4 {[%clk 0:00:05.6]}
38... b3 {[%clk 0:01:21]} 39. Kf3 {[%clk 0:00:04.3]} 39... Nc1 {[%clk
0:01:10.1]} 40. Ke3 {[%clk 0:00:02.2]} 40... e5 {[%clk 0:01:06]} 41. Kd2 {[%clk
0:00:01.2]} 41... Na2 {[%clk 0:01:00.8]} 0-1